bitfinex/quotes_SOLUSD_20260213
["timestamp","ask_amount","ask_price","bid_price","bid_amount"]
[1771002144817,0.46430419,84.169,84.12,10.47772635]
[1771002145113,0.46430419,84.159,84.124,11.88715002]
[1771002145322,0.46430419,84.159,84.12,40.19749045]
[1771002145524,0.46430419,84.159,84.136,11.8854365]
[1771002146036,44.84,84.167,84.136,11.8854365]
[1771002146235,10.94246618,84.18,84.141,0.45946594]
[1771002146438,45.30430419,84.179,84.141,0.45946594]
[1771002146724,0.46430419,84.178,84.141,0.45946594]
[1771002146932,11.87972961,84.177,84.142,11.88467115]
[1771002147742,0.46430419,84.189,84.151,0.45946594]
[1771002148029,11.87744406,84.194,84.16,10.47816199]
[1771002148246,11.87744406,84.194,84.161,0.45946594]
[1771002148528,56.73673512,84.199,84.161,0.45946594]
[1771002148718,11.87673512,84.199,84.161,0.45946594]
[1771002150114,11.87673512,84.199,84.16,10.47816199]
[1771002150115,0.46430419,84.198,84.16,10.47816199]
[1771002150316,0.46430419,84.189,84.153,11.88302285]
[1771002150528,44.88,84.188,84.153,11.88302285]
[1771002150932,0.47007373,84.179,84.141,0.48689701]
[1771002151135,45.35007373,84.178,84.141,0.48689701]
[1771002151340,0.47007373,84.176,84.141,0.48689701]
[1771002151641,0.47007373,84.176,84.143,11.8845299]
[1771002151833,44.88,84.178,84.151,0.48689701]
[1771002152217,11.87972961,84.177,84.147,11.88387026]
[1771002152810,44.88,84.179,84.147,11.88387026]
[1771002153211,12.34966222,84.178,84.147,11.88387026]
[1771002154247,12.34966222,84.178,84.142,11.88467115]
[1771002154532,0.47007373,84.169,84.142,11.88467115]
[1771002155622,0.47007373,84.169,84.14,10.71438199]
[1771002155822,0.47007373,84.159,84.14,0.23622]
[1771002156124,0.47007373,84.157,84.14,0.23622]
[1771002156320,11.88269404,84.156,84.14,0.23622]
[1771002156627,44.94,84.167,84.141,12.3717094]
[1771002157036,10.47816199,84.18,84.142,0.46728196]
[1771002157244,44.94,84.179,84.142,0.46728196]
[1771002157716,44.96,84.178,84.142,0.46728196]
[1771002158117,44.96,84.178,84.15,10.47816199]
[1771002158534,44.96,84.178,84.144,0.46728196]
[1771002159130,44.96,84.178,84.151,0.46728196]
[1771002159338,44.98,84.18,84.151,0.46728196]
[1771002159525,0.46505754,84.179,84.143,11.8845299]
[1771002160636,0.46505754,84.177,84.143,11.8845299]
[1771002161220,0.46505754,84.159,84.14,0.23622]
[1771002162422,45.0,84.176,84.14,0.23622]
[1771002162423,41.57855971,84.178,84.141,0.46728196]
[1771002162645,0.46505754,84.167,84.14,0.23622]
[1771002163519,10.47816199,84.16,84.14,0.23622]
[1771002163746,0.46505754,84.159,84.14,0.23622]
[1771002165146,0.46505754,84.157,84.14,0.23622]
[1771002165340,0.46505754,84.146,84.087,0.46728196]
[1771002165542,10.47816199,84.14,84.112,0.46728196]
[1771002165727,45.06,84.14,84.112,0.46728196]
[1771002166825,0.46505754,84.139,84.11,0.1]
[1771002167036,0.46505754,84.139,84.06,58.0629366]
[1771002167037,0.46505754,84.119,84.082,0.46728196]
[1771002167241,45.08,84.118,84.084,0.46728196]
[1771002167440,11.88679021,84.127,84.091,0.46728196]
[1771002167647,45.08,84.122,84.091,0.46728196]
[1771002168361,10.47816199,84.12,84.091,0.46728196]
[1771002168549,10.94321953,84.12,84.091,0.46728196]
[1771002169022,45.1,84.119,84.091,0.46728196]
[1771002169222,45.1,84.119,84.093,0.46728196]
[1771002169428,0.46505754,84.118,84.084,0.46728196]
[1771002170040,0.46505754,84.117,84.084,12.36015099]
[1771002170233,0.46505754,84.099,84.054,0.46728196]
[1771002170434,0.46505754,84.097,84.061,0.46728196]
[1771002171142,0.46505754,84.089,84.054,11.89711376]
[1771002171348,0.46505754,84.087,84.055,0.46728196]
[1771002171746,10.47816199,84.09,84.055,0.46728196]
[1771002171747,0.46505754,84.085,84.055,0.46728196]
[1771002171940,0.46505754,84.115,84.071,0.46728196]
[1771002172251,45.12,84.117,84.09,10.47816199]
[1771002172435,45.12,84.117,84.091,0.46728196]
[1771002173150,4.61729252,84.146,84.06,10.47816199]
[1771002173151,45.1,84.135,84.111,0.46728196]
[1771002173353,45.1,84.135,84.112,12.35619198]
[1771002174951,45.1,84.135,84.113,0.46728196]
[1771002175335,45.1,84.135,84.114,11.88862733]
[1771002175534,45.1,84.135,84.115,0.46728196]
[1771002176152,45.16,84.147,84.121,0.46728196]
[1771002177351,0.46505754,84.146,84.114,12.35590929]
[1771002177555,0.46505754,84.164,84.121,0.46728196]
[1771002177858,10.47816199,84.16,84.121,0.46728196]
[1771002178367,45.18,84.159,84.121,0.46728196]
[1771002178538,45.18,84.159,84.13,10.47816199]
[1771002178860,45.18,84.166,84.141,0.46728196]
[1771002179539,0.46505754,84.159,84.125,0.46728196]
[1771002179741,10.47816199,84.16,84.125,0.46728196]
[1771002179958,11.88142339,84.165,84.125,0.46728196]
[1771002180372,0.46505754,84.159,84.125,0.46728196]
[1771002180656,11.88086906,84.169,84.13,10.47816199]
[1771002180965,45.18,84.168,84.131,0.4885309]
[1771002181344,45.63359114,84.168,84.131,0.4885309]
[1771002181549,0.45359114,84.159,84.127,11.88668449]
[1771002181874,10.47816199,84.14,84.107,0.4885309]
[1771002182058,0.45359114,84.119,84.08,0.4885309]
[1771002182246,184.15768647,84.167,84.04,0.1]
[1771002182247,10.47816199,84.1,84.067,0.4885309]
[1771002182558,10.47816199,84.12,84.081,0.4885309]
[1771002182760,10.47816199,84.12,84.061,41.63643068]
[1771002182761,10.47816199,84.1,84.071,0.4885309]
[1771002182948,0.45359114,84.109,84.071,0.4885309]
[1771002183463,0.45359114,84.109,84.073,0.4885309]
[1771002183956,10.47816199,84.09,84.064,11.89569851]
[1771002184165,0.45359114,84.099,84.064,11.89569851]
[1771002184457,0.45359114,84.099,84.065,0.4885309]
[1771002184458,45.18,84.098,84.065,0.4885309]
[1771002185464,45.18,84.098,84.066,11.8954155]
[1771002185760,0.45359114,84.109,84.067,0.4885309]
[1771002185761,45.18,84.101,84.067,0.4885309]
[1771002185961,0.45359114,84.109,84.071,0.4885309]
[1771002186349,45.2,84.11,84.071,0.4885309]
[1771002186552,45.2,84.11,84.081,0.4885309]
[1771002186957,11.88922296,84.11,84.081,0.4885309]
[1771002187261,0.45359114,84.109,84.081,0.4885309]
[1771002187765,45.2,84.115,84.067,0.4885309]
[1771002187766,0.45359114,84.099,84.067,0.4885309]
[1771002188066,0.45359114,84.107,84.067,0.4885309]
[1771002188446,0.45359114,84.099,84.061,11.89612305]
[1771002188648,0.45359114,84.099,84.062,0.4885309]
[1771002189363,41.61316402,84.108,84.061,11.89612305]
[1771002189364,0.45359114,84.089,84.061,11.89612305]
[1771002189557,10.47816199,84.08,84.054,11.89703092]
[1771002190064,0.45359114,84.079,84.054,11.89703092]
[1771002190453,10.47816199,84.08,84.054,12.38556182]
[1771002190662,45.22,84.079,84.054,12.38556182]
[1771002190882,0.45359114,84.126,84.055,0.4885309]
[1771002191062,0.45359114,84.126,84.081,0.4885309]
[1771002191063,0.45359114,84.119,84.081,0.4885309]
[1771002191361,0.45359114,84.109,84.071,0.4885309]
[1771002192068,11.88820333,84.117,84.081,0.4885309]
[1771002192368,0.45359114,84.116,84.081,0.4885309]
[1771002192569,10.93175313,84.11,84.081,0.4885309]
[1771002192771,0.45359114,84.11,84.081,0.4885309]
[1771002192980,45.22,84.118,84.081,0.4885309]
[1771002193469,11.88815451,84.118,84.081,0.4885309]
[1771002193680,10.93175313,84.12,84.081,0.4885309]
[1771002193681,0.45359114,84.12,84.081,0.4885309]
[1771002194164,0.45359114,84.12,84.09,10.96669289]
[1771002194369,11.88550812,84.137,84.091,0.4885309]
[1771002194572,0.45359114,84.129,84.091,0.4885309]
[1771002195153,10.47816199,84.12,84.083,0.4885309]
[1771002195450,0.45359114,84.119,84.083,0.4885309]
[1771002195656,45.24,84.132,84.082,11.89315192]
[1771002195657,10.47816199,84.11,84.082,11.89315192]
[1771002195869,0.45359114,84.109,84.082,11.89315192]
[1771002196061,45.24,84.108,84.082,11.89315192]
[1771002196257,45.24,84.108,84.051,4.61729252]
[1771002196258,0.45359114,84.107,84.062,29.73973695]
[1771002196467,0.45359114,84.099,84.063,0.4885309]
[1771002197468,0.45359114,84.099,84.064,0.4885309]
[1771002197669,45.24,84.116,84.081,0.4885309]
[1771002197872,0.45359114,84.109,84.081,0.4885309]
[1771002199473,0.45359114,84.109,84.082,11.89315192]
[1771002199768,45.24,84.115,84.083,0.4885309]
[1771002199966,57.12855468,84.115,84.083,0.4885309]
[1771002200277,45.24,84.115,84.083,0.4885309]
[1771002200459,11.8868583,84.127,84.091,0.4885309]
[1771002200659,45.24,84.126,84.091,0.4885309]
[1771002200872,45.26,84.131,84.1,10.47816199]
[1771002201073,0.45359114,84.137,84.101,0.4885309]
[1771002201556,0.45359114,84.137,84.103,0.4885309]
[1771002201881,45.26,84.139,84.103,0.4885309]
[1771002201882,0.45359114,84.135,84.103,0.4885309]
[1771002202075,0.45359114,84.135,84.089,29.7300561]
[1771002202076,0.45359114,84.119,84.086,11.8925211]
[1771002202765,0.45359114,84.119,84.086,12.381052]
[1771002203580,0.45359114,84.119,84.08,10.47816199]
[1771002203758,0.45359114,84.109,84.075,0.4885309]
[1771002204082,10.93175313,84.1,84.073,11.89428854]
[1771002204667,0.45359114,84.099,84.068,11.89508388]
[1771002205760,10.47816199,84.09,84.052,0.4885309]
[1771002205957,0.45359114,84.079,84.052,11.89739684]
[1771002206159,0.45359114,84.079,84.04,0.1]
[1771002206160,10.47816199,84.07,84.04,0.1]
[1771002206385,10.47816199,84.07,84.051,11.89753839]
[1771002206886,10.50058714,84.07,84.051,11.89753839]
[1771002207263,10.50058714,84.07,84.04,0.1]
[1771002207793,0.45359114,84.077,84.042,0.4885309]
[1771002207961,0.45359114,84.088,84.051,0.4885309]
[1771002208168,10.50058714,84.09,84.051,0.4885309]
[1771002209375,10.50058714,84.09,84.052,11.89739684]
[1771002209574,10.50058714,84.09,84.053,0.4885309]
[1771002210157,0.45359114,84.097,84.053,0.4885309]
[1771002210470,0.45359114,84.097,84.061,0.4885309]
[1771002210675,0.48486704,84.095,84.061,0.4885309]
[1771002210882,10.50058714,84.09,84.061,0.4885309]
[1771002211384,0.48486704,84.089,84.053,0.48472255]
[1771002211579,0.48486704,84.089,84.055,0.48472255]
[1771002213591,12.37606382,84.096,84.055,0.48472255]
[1771002213886,10.50058714,84.1,84.057,0.48472255]
[1771002214191,57.08989969,84.105,84.057,0.48472255]
[1771002214192,10.50058714,84.09,84.057,0.48472255]
[1771002214487,0.48486704,84.069,84.051,11.89753839]
[1771002214979,0.48486704,84.069,84.05,0.1]
[1771002215182,0.48486704,84.069,84.05,11.99759069]
[1771002215783,0.48486704,84.068,84.05,0.1]
[1771002216882,10.50058714,84.06,84.04,0.1]
[1771002217569,10.50058714,84.07,84.04,0.58282396]
[1771002217770,0.46246756,84.077,84.042,0.48282396]
[1771002218180,10.50058714,84.07,84.042,0.48282396]
[1771002219592,10.50058714,84.06,84.042,0.48282396]
[1771002219778,10.50058714,84.06,84.041,11.89895408]
[1771002219979,10.50058714,84.06,84.04,0.1]
[1771002220164,0.46246756,84.069,84.04,0.1]
[1771002220487,10.50058714,84.06,84.04,0.58282396]
[1771002220666,10.50058714,84.06,84.04,0.1]
[1771002220667,10.9630547,84.06,84.04,0.1]
[1771002221094,10.50058714,84.06,84.04,0.1]
[1771002221487,0.46246756,84.069,84.04,0.1]
[1771002221680,10.50058714,84.09,84.041,0.48282396]
[1771002222088,11.89216187,84.089,84.043,0.48282396]
[1771002222391,10.9630547,84.11,84.051,0.48282396]
[1771002222587,10.9630547,84.11,84.061,0.48282396]
[1771002222792,0.46246756,84.129,84.071,0.48282396]
[1771002223094,10.50058714,84.14,84.091,0.48282396]
[1771002223586,10.50058714,84.15,84.101,0.48282396]
[1771002223796,10.50058714,84.16,84.111,0.48282396]
[1771002223990,10.50058714,84.14,84.112,11.88891002]
[1771002224184,0.46246756,84.147,84.112,11.88891002]
[1771002224385,10.50058714,84.14,84.112,11.88891002]
[1771002225104,10.50058714,84.14,84.112,12.37173398]
[1771002225399,0.46246756,84.147,84.113,0.48282396]
[1771002225575,0.2,84.15,84.113,0.48282396]
[1771002226201,0.2,84.15,84.115,0.48282396]
[1771002226379,29.6962424,84.186,84.114,41.61019567]
[1771002226380,10.9630547,84.17,84.121,0.48282396]
[1771002226703,0.46246756,84.169,84.121,0.48282396]
[1771002226876,0.46246756,84.179,84.14,10.50058714]
[1771002227081,0.46246756,84.189,84.14,10.50058714]
[1771002227385,0.46246756,84.169,84.136,41.96]
[1771002228280,11.87799671,84.19,84.15,10.50058714]
[1771002228581,10.9630547,84.19,84.151,41.94]
[1771002228770,0.46246756,84.189,84.151,41.94]
[1771002228971,0.46246756,84.189,84.152,0.45720355]
[1771002229193,10.9630547,84.2,84.161,0.45719558]
[1771002229391,10.50058714,84.22,84.171,0.45719558]
[1771002229692,10.50058714,84.22,84.143,4.61729252]
[1771002229693,0.46246756,84.239,84.19,10.95778272]
[1771002229884,0.46246756,84.199,84.166,0.45719558]
[1771002230084,0.46246756,84.199,84.155,0.45718771]
[1771002230284,10.9630547,84.21,84.161,0.45718771]
[1771002230623,10.9630547,84.2,84.161,0.45718771]
[1771002231493,0.46246756,84.241,84.181,0.45717993]
[1771002231701,10.50058714,84.2,84.169,0.45717993]
[1771002232400,10.50058714,84.2,84.17,11.88071759]
[1771002232981,10.50058714,84.2,84.156,29.70673511]
[1771002232982,0.46246756,84.179,84.139,0.4617094]
[1771002233188,10.50058714,84.18,84.112,47.55556701]
[1771002233189,10.50058714,84.18,84.144,0.4617094]
[1771002233388,0.46246756,84.189,84.144,0.4617094]
[1771002233980,10.50058714,84.18,84.144,0.4617094]
[1771002234381,10.50058714,84.18,84.145,11.88424743]
[1771002234783,10.50058714,84.17,84.145,11.88424743]
[1771002235484,12.34191492,84.179,84.111,0.46613542]
[1771002235485,0.46246756,84.149,84.111,0.46613542]
[1771002235782,10.50058714,84.14,84.111,0.46613542]
[1771002235986,0.46246756,84.149,84.111,0.46613542]
[1771002236374,0.46246756,84.149,84.112,11.88891002]
[1771002236579,0.46246756,84.147,84.112,11.88891002]
[1771002236994,0.46246756,84.129,84.1,11.89052781]
[1771002237400,0.46246756,84.129,84.1,41.61704386]
[1771002237601,0.46246756,84.149,84.101,0.47046035]
[1771002237781,0.46246756,84.149,84.103,0.47046035]
[1771002238488,10.50058714,84.16,84.111,0.47258563]
[1771002238689,10.9630547,84.16,84.113,0.47258563]
[1771002238914,10.9630547,84.16,84.104,41.61514315]
[1771002238915,10.50058714,84.17,84.131,0.47258563]
[1771002239394,10.50058714,84.16,84.131,0.47258563]
[1771002239701,0.46246756,84.159,84.116,0.4746865]
[1771002240206,0.46246756,84.149,84.105,0.47676324]
[1771002240504,0.46246756,84.149,84.107,0.47676324]
[1771002240704,10.50058714,84.16,84.111,0.47676324]
[1771002240884,0.46032232,84.169,84.121,0.47023429]
[1771002241283,0.46032232,84.149,84.117,41.98]
[1771002241598,0.46032232,84.149,84.111,41.98]
[1771002241910,0.46032232,84.139,84.108,41.61316402]
[1771002242287,10.50058714,84.16,84.111,0.47023429]
[1771002242493,0.46032232,84.169,84.121,0.47023429]
[1771002242709,0.46032232,84.149,84.113,41.61069038]
[1771002243511,10.50058714,84.15,84.113,11.88876868]
[1771002243512,10.96090946,84.14,84.113,11.88876868]
[1771002243708,0.46032232,84.129,84.104,11.8900409]
[1771002243926,0.46032232,84.149,84.105,0.47023429]
[1771002244101,0.46032232,84.149,84.111,0.47023429]
[1771002244295,0.46032232,84.149,84.112,42.0]
[1771002244495,0.46032232,84.139,84.112,42.0]
[1771002244810,0.46032232,84.139,84.113,11.88876868]
[1771002245212,0.46032232,84.149,84.113,41.61069038]
[1771002245586,0.46032232,84.139,84.113,11.88876868]
[1771002246709,0.46032232,84.139,84.104,41.61514315]
[1771002247107,0.46032232,84.139,84.104,42.08537744]
[1771002247814,0.46032232,84.119,84.073,0.47023429]
[1771002248013,10.50058714,84.1,84.071,11.89470804]
[1771002248210,0.46032232,84.099,84.071,11.89470804]
[1771002248513,0.46032232,84.117,84.072,0.47023429]
[1771002248722,0.46032232,84.109,84.073,41.63048778]
[1771002249307,10.50058714,84.12,84.074,0.47023429]
[1771002249611,10.50058714,84.12,84.081,0.47023429]
[1771002250600,10.96090946,84.12,84.081,0.47023429]
[1771002250927,0.46032232,84.119,84.081,0.47023429]
[1771002251415,29.71309039,84.138,84.083,0.47023429]
[1771002251416,12.34680176,84.13,84.083,0.47023429]
[1771002251619,0.46032232,84.129,84.084,0.47023429]
[1771002251796,10.50058714,84.11,84.083,42.1]
[1771002252007,0.46032232,84.119,84.083,42.1]
[1771002252318,0.46032232,84.119,84.084,0.47023429]
[1771002252824,0.46032232,84.119,84.083,42.1]
[1771002253016,10.50058714,84.09,84.058,0.47023429]
[1771002253220,10.50058714,84.09,84.06,29.74049645]
[1771002253436,0.46032232,84.099,84.06,30.21073074]
[1771002253927,10.50058714,84.09,84.06,30.21073074]
[1771002254128,10.96090946,84.09,84.06,30.21073074]
[1771002254636,0.46032232,84.079,84.041,11.89895408]
[1771002254822,0.46032232,84.069,84.041,54.01895408]
[1771002255006,0.46032232,84.069,84.041,11.89895408]
[1771002255606,0.46032232,84.069,84.04,0.1]
[1771002256526,10.96090946,84.06,84.04,0.1]
[1771002256829,10.50058714,84.08,84.041,0.47023429]
[1771002257013,10.50058714,84.08,84.04,0.1]
[1771002257014,0.46032232,84.069,84.04,42.24]
[1771002257325,10.50058714,84.06,84.04,42.24]
[1771002257506,10.50058714,84.06,84.041,11.89895408]
[1771002257709,0.46032232,84.069,84.041,11.89895408]
[1771002257918,11.89513251,84.068,84.041,11.89895408]
[1771002258129,10.50058714,84.06,84.041,11.89895408]
[1771002259123,0.46032232,84.067,84.041,11.89895408]
[1771002259724,0.46032232,84.078,84.041,42.11657357]
[1771002259912,44.66,84.102,84.041,42.11657357]
[1771002259913,0.46032232,84.059,84.041,11.89895408]
[1771002260524,0.46032232,84.059,84.04,0.1]
[1771002260728,0.46032232,84.049,84.01,0.1]
[1771002260908,10.50058714,84.02,84.01,0.1]
[1771002261104,0.46032232,84.019,83.985,29.76690768]
[1771002261323,0.46032232,84.019,83.996,11.90522915]
[1771002261826,0.46032232,84.019,83.981,0.47023429]
[1771002261827,10.50058714,84.01,83.988,11.90632866]
[1771002262320,10.50058714,84.01,83.986,11.90671994]
[1771002262826,0.46032232,84.009,83.981,11.90736683]
[1771002263026,0.46032232,84.009,83.98,42.4]
[1771002263212,10.50058714,84.02,83.992,0.47023429]
[1771002263411,44.62,84.04,83.992,0.47023429]
[1771002263412,10.50058714,84.03,83.992,0.47023429]
[1771002263607,22.40262581,84.02,83.992,0.47023429]
[1771002264012,22.40262581,84.02,83.993,11.90575405]
[1771002264213,22.40262581,84.02,83.992,0.47023429]
[1771002264413,10.50058714,84.01,83.984,11.90701956]
[1771002264711,10.50058714,84.02,83.991,0.47023429]
[1771002265326,10.50058714,84.01,83.991,12.37627184]
[1771002265529,10.50058714,84.02,83.992,0.47023429]
[1771002266123,22.40251564,84.02,83.993,11.90575405]
[1771002266435,10.50058714,84.02,83.993,11.90575405]
[1771002266616,10.50058714,84.01,83.992,0.47023429]
[1771002266822,10.50058714,84.01,83.99,0.2]
[1771002267329,10.50058714,84.02,83.992,0.47023429]
[1771002267650,44.62,84.034,83.99,0.2]
[1771002267651,10.50058714,84.01,83.99,0.2]
[1771002268013,11.90221143,84.018,83.99,12.1061675]
[1771002268333,10.50058714,84.0,83.98,0.2]
[1771002268642,10.50058714,83.99,83.98,0.2]
[1771002268815,10.50058714,83.99,83.972,0.47023429]
[1771002268816,10.50058714,83.99,83.964,11.90976756]
[1771002269015,10.52125174,83.99,83.968,11.90929265]
[1771002269427,10.52125174,83.99,83.962,0.47023429]
[1771002269634,41.65774,84.018,83.96,0.2]
[1771002269635,10.52125174,83.98,83.96,0.2]
[1771002270031,11.90773883,83.979,83.96,0.2]
[1771002270515,10.52125174,83.98,83.96,0.2]
[1771002271543,11.90650733,83.988,83.96,0.2]
[1771002271716,10.52125174,83.99,83.968,0.53838311]
[1771002272138,10.52125174,83.98,83.963,11.90999731]
[1771002273532,10.52125174,83.99,83.96,0.2]
[1771002274019,10.52125174,83.99,83.967,0.53838311]
[1771002274435,22.42751937,83.99,83.967,0.53838311]
[1771002275238,10.52125174,83.98,83.96,0.2]
[1771002275539,5.52125174,83.98,83.96,0.2]
[1771002275920,10.52125174,83.99,83.96,0.2]
[1771002276234,10.52125174,83.99,83.968,11.90920473]
[1771002276819,44.72,83.995,83.963,11.90988898]
[1771002276820,10.52125174,83.98,83.963,11.90988898]
[1771002277028,10.52125174,83.98,83.96,0.2]
[1771002277215,10.52125174,83.97,83.96,0.2]
[1771002278041,10.52125174,83.97,83.95,0.1]
[1771002278237,44.74,83.981,83.95,0.1]
[1771002278238,10.52125174,83.96,83.95,0.1]
[1771002278623,11.91057539,83.959,83.932,11.9143966]
[1771002278829,47.62105917,83.997,83.9,0.1]
[1771002278830,11.90065334,84.029,83.951,0.56688642]
[1771002279123,10.52125174,83.99,83.951,0.56688642]
[1771002279525,44.76,83.996,83.951,0.56688642]
[1771002279842,10.52125174,83.99,83.951,0.56688642]
[1771002280036,10.52125174,84.0,83.961,0.56688642]
[1771002280438,10.52125174,84.0,83.963,0.56688642]
[1771002280845,10.52125174,84.01,83.971,0.56688642]
[1771002281031,44.74,84.014,83.971,0.56688642]
[1771002281232,10.52125174,84.0,83.971,0.56688642]
[1771002281439,10.52125174,84.0,83.963,0.56688642]
[1771002281927,10.52125174,84.01,83.971,0.56688642]
[1771002282341,10.52125174,83.99,83.962,41.68552439]
[1771002282650,10.52125174,84.0,83.963,0.56688642]
[1771002283462,10.52125174,83.99,83.962,11.91014982]
[1771002284145,10.52125174,83.98,83.953,11.91142663]
[1771002284540,0.0266146,83.989,83.952,0.56688642]
[1771002285250,11.90646282,83.988,83.952,0.56688642]
[1771002285456,11.93705034,83.988,83.952,0.56688642]
[1771002285649,0.03058752,83.988,83.952,0.56688642]
[1771002285963,11.93705034,83.988,83.952,0.56688642]
[1771002286554,0.03058752,83.988,83.954,0.56688642]
[1771002286753,0.03451481,84.047,83.971,0.56688642]
[1771002286943,10.52125174,84.01,83.971,0.56688642]
[1771002288652,10.52125174,84.01,83.973,0.56688642]
[1771002288863,10.52125174,84.0,83.973,0.56688642]
[1771002289259,0.04223458,84.009,83.973,0.56688642]
[1771002289651,10.52125174,84.0,83.973,0.56688642]
[1771002290045,0.04223458,84.009,83.973,0.56688642]
[1771002291159,10.52125174,84.01,83.975,0.56688642]
[1771002292265,11.90209157,84.019,83.981,0.56688642]
[1771002292768,10.52125174,84.02,83.981,0.56688642]
[1771002292944,44.8,84.019,83.981,0.56688642]
[1771002293345,44.8,84.019,83.983,0.56688642]
[1771002293872,11.96009666,84.039,84.001,0.56688642]
[1771002294049,44.8,84.038,84.001,0.56688642]
[1771002294370,44.8,84.037,84.001,0.56688642]
[1771002294570,44.8,84.037,84.008,0.56688642]
[1771002294751,44.8,84.037,83.984,42.38]
[1771002294752,44.8,84.039,84.011,0.56688642]
[1771002294955,10.52125174,84.05,83.982,41.67559714]
[1771002294956,0.06435198,84.059,84.021,0.56688642]
[1771002295254,55.32125174,84.05,84.021,0.56688642]
[1771002295445,11.89679385,84.057,84.023,0.56688642]
[1771002295646,44.82,84.056,84.023,0.56688642]
[1771002295845,44.82,84.059,84.023,0.56688642]
[1771002296265,11.89470033,84.072,84.04,10.52125174]
[1771002296444,11.89117199,84.096,84.06,10.52125174]
[1771002296772,0.07139026,84.089,84.052,0.56688642]
[1771002296952,10.52125174,84.08,84.041,0.56688642]
[1771002297467,10.52125174,84.09,84.051,0.56688642]
[1771002297667,44.82,84.095,84.061,0.56688642]
[1771002297871,10.52125174,84.09,84.061,0.56688642]
[1771002298261,0.07826779,84.079,84.042,11.89881249]
[1771002298649,0.07826779,84.059,84.019,0.56688642]
[1771002298854,0.07826779,84.059,84.021,0.56688642]
[1771002299573,11.97467388,84.059,84.021,0.56688642]
[1771002299870,10.60289916,84.05,84.016,11.90246782]
[1771002300268,0.08498824,84.058,84.011,0.56688642]
[1771002300571,0.08498824,84.048,84.011,0.56688642]
[1771002300776,0.08829068,84.039,84.007,11.90374016]
[1771002301268,10.61280693,84.03,84.001,11.90448018]
[1771002301468,41.63742132,84.059,83.981,12.51140346]
[1771002301469,10.61280693,84.02,83.981,12.51140346]
[1771002301779,11.9009366,84.027,83.991,0.60394821]
[1771002301958,10.52125174,84.02,83.991,0.60394821]
[1771002302166,10.52125174,84.01,83.981,11.90745525]
[1771002302362,0.09478221,84.019,83.982,0.60394821]
[1771002302557,10.52125174,84.01,83.982,0.60394821]
[1771002302762,0.09478221,84.019,83.982,0.60394821]
[1771002303070,10.52125174,84.01,83.982,0.60394821]
[1771002303278,41.6532781,84.027,83.965,42.34]
[1771002303279,10.52125174,84.0,83.968,0.60394821]
[1771002303686,11.90490362,83.999,83.969,0.60394821]
[1771002303977,10.52125174,84.0,83.971,0.60394821]
[1771002305970,10.52125174,84.0,83.973,0.60394821]
[1771002306280,10.52125174,84.0,83.968,0.60394821]
[1771002306581,44.82,84.004,83.968,0.60394821]
[1771002306774,11.90235309,84.017,83.971,0.60394821]
[1771002306975,44.84,84.01,83.981,0.60394821]
[1771002307174,0.11036974,84.009,83.971,0.60394821]
[1771002307484,41.65823582,84.017,83.97,10.52125174]
[1771002307485,44.84,84.008,83.981,0.60394821]
[1771002307984,44.84,84.017,83.983,0.60394821]
[1771002308365,44.84,84.019,83.983,0.60394821]
[1771002308566,11.90206976,84.019,83.983,0.60394821]
[1771002309175,10.52125174,84.02,83.983,0.60394821]
[1771002309360,11.90206976,84.019,83.983,0.60394821]
[1771002309561,10.52125174,84.01,83.974,11.90844785]
[1771002309776,10.52125174,84.01,83.974,12.51239606]
[1771002309973,10.52125174,84.01,83.975,0.60394821]
[1771002310180,11.90348653,84.009,83.975,0.60394821]
[1771002311982,44.86,84.013,83.993,0.60394821]
[1771002312165,11.90261736,84.016,83.993,0.60394821]
[1771002312368,10.52125174,84.0,83.971,12.51282151]
[1771002313079,0.12508241,84.009,83.971,0.60394821]
[1771002313466,10.52125174,84.0,83.971,0.60394821]
[1771002313663,0.12508241,84.009,83.971,0.60394821]
[1771002314271,12.02856894,84.009,83.973,0.60394821]
[1771002314472,41.78728526,84.009,83.973,0.60394821]
[1771002315074,10.52125174,84.0,83.973,0.60394821]
[1771002315969,10.52125174,83.99,83.973,0.60394821]
[1771002316166,44.9,83.995,83.973,0.60394821]
[1771002316363,56.80552486,83.995,83.973,0.60394821]
[1771002316567,56.80552486,83.995,83.95,10.52125174]
[1771002316568,10.52125174,83.98,83.945,0.60394821]
[1771002316790,10.52125174,83.97,83.945,0.60394821]
[1771002317368,44.92,83.979,83.945,0.60394821]
[1771002317588,10.52125174,83.96,83.936,0.60394821]
[1771002317770,10.52125174,83.97,83.944,6.26538815]
[1771002318387,11.90915695,83.969,83.944,6.26538815]
[1771002318687,44.92,83.979,83.944,6.26538815]
[1771002318688,10.52125174,83.99,83.945,0.60394821]
[1771002318872,10.52125174,83.99,83.944,17.57401038]